[Event "Early-Titled-Tuesday-Blitz-May-07-2024"]
[Site "Chess.com"]
[Date "2024.05.07"]
[Round "10"]
[White "IMchanged"]
[Black "Zarinur"]
[Result "1/2-1/2"]
[WhiteElo "2764"]
[BlackElo "2565"]
[TimeControl "180+1"]
[EndTime "10:05:51 PDT"]
[Termination "Game drawn by 50-move rule"]

1. d4 {[%clk 0:03:00.9]} 1... Nf6 {[%clk 0:02:56.3]} 2. Nc3 {[%clk 0:03:00.8]}
2... d5 {[%clk 0:02:55.5]} 3. Bf4 {[%clk 0:03:00.8]} 3... e6 {[%clk 0:02:51.7]}
4. e3 {[%clk 0:03:00.8]} 4... a6 {[%clk 0:02:40.9]} 5. Bd3 {[%clk 0:02:59.6]}
5... h6 {[%clk 0:02:40.3]} 6. Nf3 {[%clk 0:02:59]} 6... c5 {[%clk 0:02:38.5]} 7.
dxc5 {[%clk 0:02:58.7]} 7... Bxc5 {[%clk 0:02:36.5]} 8. O-O {[%clk 0:02:58.6]}
8... Nc6 {[%clk 0:02:31]} 9. e4 {[%clk 0:02:56]} 9... O-O {[%clk 0:02:13.9]} 10.
e5 {[%clk 0:02:48.1]} 10... Nd7 {[%clk 0:02:11.6]} 11. Qd2 {[%clk 0:02:38]}
11... f5 {[%clk 0:01:56.7]} 12. h4 {[%clk 0:02:23.2]} 12... Qe7 {[%clk
0:01:48.3]} 13. Ne2 {[%clk 0:02:21.2]} 13... Bb6 {[%clk 0:01:43]} 14. c3 {[%clk
0:02:14.1]} 14... Nc5 {[%clk 0:01:37.9]} 15. Be3 {[%clk 0:02:07.8]} 15... Bd7
{[%clk 0:01:27.3]} 16. Nf4 {[%clk 0:01:54.9]} 16... Be8 {[%clk 0:01:24.4]} 17.
h5 {[%clk 0:01:44.2]} 17... Ne4 {[%clk 0:00:56.9]} 18. Qe2 {[%clk 0:01:44.1]}
18... Bc7 {[%clk 0:00:57.1]} 19. Bd4 {[%clk 0:01:40.6]} 19... Bf7 {[%clk
0:00:43.2]} 20. g3 {[%clk 0:01:38.3]} 20... b5 {[%clk 0:00:19.3]} 21. Kg2 {[%clk
0:01:33.4]} 21... b4 {[%clk 0:00:17.6]} 22. Rfc1 {[%clk 0:01:28.3]} 22... bxc3
{[%clk 0:00:17.3]} 23. bxc3 {[%clk 0:01:28.9]} 23... Ba5 {[%clk 0:00:15.5]} 24.
Nh4 {[%clk 0:01:24.9]} 24... Qa3 {[%clk 0:00:13.7]} 25. Rab1 {[%clk 0:01:19.5]}
25... Nxc3 {[%clk 0:00:06.3]} 26. Bxc3 {[%clk 0:01:19.4]} 26... Bxc3 {[%clk
0:00:06.9]} 27. Qc2 {[%clk 0:01:05.6]} 27... d4 {[%clk 0:00:07]} 28. Qe2 {[%clk
0:00:58.5]} 28... Nb4 {[%clk 0:00:05.6]} 29. Bc4 {[%clk 0:00:58.9]} 29... Rac8
{[%clk 0:00:04.5]} 30. Bb3 {[%clk 0:00:55.9]} 30... Qa5 {[%clk 0:00:03.9]} 31.
Nxe6 {[%clk 0:00:54.2]} 31... Rfe8 {[%clk 0:00:03.4]} 32. Nxg7 {[%clk 0:00:42]}
32... Bxb3 {[%clk 0:00:03.3]} 33. Nxe8 {[%clk 0:00:41.5]} 33... Qd5+ {[%clk
0:00:02.4]} 34. Kh2 {[%clk 0:00:38.2]} 34... Rxe8 {[%clk 0:00:02.9]} 35. axb3
{[%clk 0:00:36.7]} 35... d3 {[%clk 0:00:03.2]} 36. Qf3 {[%clk 0:00:35.1]} 36...
Qxf3 {[%clk 0:00:02.9]} 37. Nxf3 {[%clk 0:00:35.7]} 37... Bxe5 {[%clk
0:00:01.9]} 38. Re1 {[%clk 0:00:36]} 38... Nc6 {[%clk 0:00:01.8]} 39. Nxe5
{[%clk 0:00:35.8]} 39... Rxe5 {[%clk 0:00:01.9]} 40. Kg2 {[%clk 0:00:32.6]}
40... Rd5 {[%clk 0:00:01.9]} 41. Rbd1 {[%clk 0:00:31.2]} 41... Nb4 {[%clk
0:00:02.2]} 42. Re8+ {[%clk 0:00:30.9]} 42... Kf7 {[%clk 0:00:02.5]} 43. Rh8
{[%clk 0:00:30.8]} 43... Kg7 {[%clk 0:00:02.7]} 44. Rb8 {[%clk 0:00:31.5]} 44...
a5 {[%clk 0:00:02.6]} 45. Rb6 {[%clk 0:00:31.2]} 45... Rd4 {[%clk 0:00:02.1]}
46. Re1 {[%clk 0:00:31.1]} 46... Nd5 {[%clk 0:00:01.5]} 47. Rg6+ {[%clk
0:00:30]} 47... Kf7 {[%clk 0:00:01.3]} 48. Rxh6 {[%clk 0:00:30]} 48... d2 {[%clk
0:00:01.8]} 49. Ra1 {[%clk 0:00:21.4]} 49... Nc3 {[%clk 0:00:02]} 50. Ra6 {[%clk
0:00:20.8]} 50... d1=Q {[%clk 0:00:02.4]} 51. Rxd1 {[%clk 0:00:21.2]} 51... Nxd1
{[%clk 0:00:02.9]} 52. Rxa5 {[%clk 0:00:22.1]} 52... Kf6 {[%clk 0:00:03.5]} 53.
h6 {[%clk 0:00:20.8]} 53... Rd2 {[%clk 0:00:03.9]} 54. h7 {[%clk 0:00:17.6]}
54... Rxf2+ {[%clk 0:00:04.5]} 55. Kg1 {[%clk 0:00:18.2]} 55... Kg7 {[%clk
0:00:04.9]} 56. Ra7+ {[%clk 0:00:18.7]} 56... Kh8 {[%clk 0:00:04.9]} 57. b4
{[%clk 0:00:17.9]} 57... Rb2 {[%clk 0:00:05.6]} 58. Rb7 {[%clk 0:00:17.8]} 58...
Ne3 {[%clk 0:00:06.1]} 59. b5 {[%clk 0:00:18.4]} 59... Rg2+ {[%clk 0:00:06.3]}
60. Kh1 {[%clk 0:00:19]} 60... Rxg3 {[%clk 0:00:06.8]} 61. b6 {[%clk 0:00:19.7]}
61... Rg2 {[%clk 0:00:07]} 62. Re7 {[%clk 0:00:17.6]} 62... f4 {[%clk
0:00:06.8]} 63. b7 {[%clk 0:00:17.3]} 63... Rb2 {[%clk 0:00:07.5]} 64. Re8+
{[%clk 0:00:13.3]} 64... Kxh7 {[%clk 0:00:07.8]} 65. b8=Q {[%clk 0:00:14.2]}
65... Rxb8 {[%clk 0:00:07.9]} 66. Rxb8 {[%clk 0:00:15.1]} 66... Kg6 {[%clk
0:00:08.5]} 67. Rb5 {[%clk 0:00:14.1]} 67... Nf5 {[%clk 0:00:08.2]} 68. Kg2
{[%clk 0:00:14.3]} 68... Kf6 {[%clk 0:00:08.2]} 69. Ra5 {[%clk 0:00:14.6]} 69...
Ke6 {[%clk 0:00:06.7]} 70. Kf3 {[%clk 0:00:14.9]} 70... Nd6 {[%clk 0:00:05.7]}
71. Kxf4 {[%clk 0:00:15]} 71... Kd7 {[%clk 0:00:05.3]} 72. Rh5 {[%clk
0:00:13.9]} 72... Kc6 {[%clk 0:00:04.5]} 73. Ke5 {[%clk 0:00:14.6]} 73... Kc5
{[%clk 0:00:03.9]} 74. Rh8 {[%clk 0:00:14.3]} 74... Nc4+ {[%clk 0:00:03.8]} 75.
Ke4 {[%clk 0:00:14.6]} 75... Nd6+ {[%clk 0:00:04.3]} 76. Kd3 {[%clk 0:00:15.3]}
76... Kd5 {[%clk 0:00:04.8]} 77. Rh5+ {[%clk 0:00:16]} 77... Kc6 {[%clk
0:00:05.1]} 78. Kd4 {[%clk 0:00:15.9]} 78... Nb5+ {[%clk 0:00:05.6]} 79. Ke5
{[%clk 0:00:16.5]} 79... Kc5 {[%clk 0:00:05.4]} 80. Rh1 {[%clk 0:00:16.6]} 80...
Kc4 {[%clk 0:00:05.2]} 81. Rc1+ {[%clk 0:00:16.9]} 81... Nc3 {[%clk 0:00:05.6]}
82. Rc2 {[%clk 0:00:14.9]} 82... Kd3 {[%clk 0:00:05.9]} 83. Rh2 {[%clk
0:00:14.2]} 83... Kc4 {[%clk 0:00:06.5]} 84. Rh4+ {[%clk 0:00:13.9]} 84... Kd3
{[%clk 0:00:06.9]} 85. Rd4+ {[%clk 0:00:13.2]} 85... Ke3 {[%clk 0:00:06.9]} 86.
Rc4 {[%clk 0:00:14.1]} 86... Kd3 {[%clk 0:00:07.3]} 87. Rc8 {[%clk 0:00:14.1]}
87... Ne2 {[%clk 0:00:06.3]} 88. Rd8+ {[%clk 0:00:14.3]} 88... Ke3 {[%clk
0:00:06.7]} 89. Ra8 {[%clk 0:00:14.8]} 89... Nc3 {[%clk 0:00:06.5]} 90. Ra3
{[%clk 0:00:15.2]} 90... Kd3 {[%clk 0:00:06.9]} 91. Ra1 {[%clk 0:00:14.9]} 91...
Kc4 {[%clk 0:00:06.5]} 92. Kd6 {[%clk 0:00:15.6]} 92... Kd3 {[%clk 0:00:06.4]}
93. Kc6 {[%clk 0:00:16.5]} 93... Kd4 {[%clk 0:00:06.7]} 94. Rh1 {[%clk
0:00:16.1]} 94... Ne4 {[%clk 0:00:04.1]} 95. Rh4 {[%clk 0:00:16.7]} 95... Ke3
{[%clk 0:00:04.4]} 96. Kd5 {[%clk 0:00:17.5]} 96... Nc3+ {[%clk 0:00:04.2]} 97.
Kc5 {[%clk 0:00:18.1]} 97... Ne4+ {[%clk 0:00:04.4]} 98. Kc4 {[%clk 0:00:19]}
98... Nd2+ {[%clk 0:00:03.8]} 99. Kc3 {[%clk 0:00:19.9]} 99... Ne4+ {[%clk
0:00:04]} 100. Kc2 {[%clk 0:00:19.9]} 100... Kd4 {[%clk 0:00:03.9]} 101. Kd1
{[%clk 0:00:19.3]} 101... Ke5 {[%clk 0:00:04.6]} 102. Ke2 {[%clk 0:00:20.2]}
102... Kf5 {[%clk 0:00:04.6]} 103. Ke3 {[%clk 0:00:20.8]} 103... Ng5 {[%clk
0:00:05.1]} 104. Rf4+ {[%clk 0:00:21.7]} 104... Kg6 {[%clk 0:00:05.4]} 105. Rf1
{[%clk 0:00:19.2]} 105... Kg7 {[%clk 0:00:05.8]} 106. Kd4 {[%clk 0:00:18]}
106... Kg6 {[%clk 0:00:05.8]} 107. Ke5 {[%clk 0:00:18.7]} 107... Nf7+ {[%clk
0:00:05.8]} 108. Kf4 {[%clk 0:00:17.5]} 108... Kf6 {[%clk 0:00:05.9]} 109. Ra1
{[%clk 0:00:18.2]} 109... Ke6 {[%clk 0:00:05.9]} 110. Ra6+ {[%clk 0:00:19.1]}
110... Nd6 {[%clk 0:00:06.4]} 111. Ra5 {[%clk 0:00:19.4]} 111... Nf7 {[%clk
0:00:06.1]} 112. Rh5 {[%clk 0:00:18.7]} 112... Nd6 {[%clk 0:00:06]} 113. Kf3
{[%clk 0:00:19]} 113... Nf7 {[%clk 0:00:05.7]} 114. Ke3 {[%clk 0:00:19.7]}
114... Nd6 {[%clk 0:00:06]} 115. Kd4 {[%clk 0:00:20.6]} 115... Nf5+ {[%clk
0:00:06.1]} 116. Ke4 {[%clk 0:00:20.3]} 116... Nd6+ {[%clk 0:00:06.6]} 117. Kf4
{[%clk 0:00:21.2]} 117... Nf7 {[%clk 0:00:06.2]} 118. Rh7 {[%clk 0:00:21.4]}
118... Nd6 {[%clk 0:00:06.2]} 119. Rh6+ {[%clk 0:00:21.9]} 119... Kd5 {[%clk
0:00:06.8]} 120. Ke3 {[%clk 0:00:21.6]} 120... Nc4+ {[%clk 0:00:06.8]} 121. Kd3
{[%clk 0:00:22.5]} 1/2-1/2

[Event "Early-Titled-Tuesday-Blitz-May-07-2024"]
[Site "Chess.com"]
[Date "2024.05.07"]
[Round "10"]
[White "littlepinkyboy"]
[Black "LLariMarc"]
[Result "1/2-1/2"]
[WhiteElo "2642"]
[BlackElo "2518"]
[TimeControl "180+1"]
[EndTime "10:06:55 PDT"]
[Termination "Game drawn - insufficient material"]

1. e4 {[%clk 0:03:00.9]} 1... e5 {[%clk 0:02:21]} 2. Nf3 {[%clk 0:03:00.1]} 2...
Nc6 {[%clk 0:02:20.2]} 3. Bb5 {[%clk 0:03:00.8]} 3... a6 {[%clk 0:02:20.7]} 4.
Ba4 {[%clk 0:03:01]} 4... Nf6 {[%clk 0:02:21.4]} 5. O-O {[%clk 0:03:01.3]} 5...
b5 {[%clk 0:02:19.9]} 6. Bb3 {[%clk 0:03:01.3]} 6... Be7 {[%clk 0:02:20.5]} 7.
Re1 {[%clk 0:02:56.8]} 7... d6 {[%clk 0:02:20.8]} 8. c3 {[%clk 0:02:56.6]} 8...
O-O {[%clk 0:02:21]} 9. h3 {[%clk 0:02:57]} 9... Nb8 {[%clk 0:02:21.4]} 10. d4
{[%clk 0:02:56.9]} 10... Nbd7 {[%clk 0:02:22]} 11. Nbd2 {[%clk 0:02:57.6]} 11...
c5 {[%clk 0:02:19.8]} 12. Nf1 {[%clk 0:02:55.3]} 12... Bb7 {[%clk 0:02:15]} 13.
Ng3 {[%clk 0:02:54.4]} 13... Re8 {[%clk 0:02:10.4]} 14. d5 {[%clk 0:02:33.1]}
14... Bf8 {[%clk 0:02:08.8]} 15. a4 {[%clk 0:02:31.4]} 15... Qc7 {[%clk
0:02:05.3]} 16. Nh2 {[%clk 0:02:17.6]} 16... g6 {[%clk 0:02:03.6]} 17. Ng4
{[%clk 0:02:12.6]} 17... Nxg4 {[%clk 0:02:03.7]} 18. hxg4 {[%clk 0:02:11.9]}
18... c4 {[%clk 0:01:59.9]} 19. Bc2 {[%clk 0:02:11]} 19... Nc5 {[%clk
0:02:00.6]} 20. axb5 {[%clk 0:02:04.5]} 20... axb5 {[%clk 0:02:00.1]} 21. Rxa8
{[%clk 0:02:04.5]} 21... Rxa8 {[%clk 0:02:01]} 22. f4 {[%clk 0:01:57.3]} 22...
exf4 {[%clk 0:01:53.6]} 23. Bxf4 {[%clk 0:01:58.2]} 23... Nd7 {[%clk 0:01:51.7]}
24. Rf1 {[%clk 0:01:43.2]} 24... Ne5 {[%clk 0:01:48.2]} 25. g5 {[%clk
0:01:21.1]} 25... Bg7 {[%clk 0:01:44.3]} 26. Ne2 {[%clk 0:01:10.8]} 26... b4
{[%clk 0:01:32]} 27. cxb4 {[%clk 0:00:59.8]} 27... Qb6+ {[%clk 0:01:31.2]} 28.
Kh1 {[%clk 0:01:00]} 28... Qxb4 {[%clk 0:01:17.1]} 29. Nd4 {[%clk 0:00:21.4]}
29... Nd3 {[%clk 0:01:01.1]} 30. Bxd3 {[%clk 0:00:10.8]} 30... cxd3 {[%clk
0:00:56.6]} 31. Nc6 {[%clk 0:00:01.9]} 31... Qxe4 {[%clk 0:00:53.4]} 32. Bh2
{[%clk 0:00:02.5]} 32... Bxc6 {[%clk 0:00:42.8]} 33. dxc6 {[%clk 0:00:03.4]}
33... Qxc6 {[%clk 0:00:43.2]} 34. Qxd3 {[%clk 0:00:02.8]} 34... Bxb2 {[%clk
0:00:41.6]} 35. Qb3 {[%clk 0:00:02.8]} 35... Bg7 {[%clk 0:00:30]} 36. Qxf7+
{[%clk 0:00:03.3]} 36... Kh8 {[%clk 0:00:30.4]} 37. Qe6 {[%clk 0:00:03.6]} 37...
Re8 {[%clk 0:00:22.8]} 38. Qg4 {[%clk 0:00:01.9]} 38... d5 {[%clk 0:00:21.3]}
39. Rd1 {[%clk 0:00:02.4]} 39... d4 {[%clk 0:00:20.1]} 40. Qf4 {[%clk
0:00:02.1]} 40... Qe6 {[%clk 0:00:17.4]} 41. Rf1 {[%clk 0:00:01.4]} 41... Rf8
{[%clk 0:00:15.2]} 42. Qc1 {[%clk 0:00:01.7]} 42... Rxf1+ {[%clk 0:00:14.5]} 43.
Qxf1 {[%clk 0:00:02.6]} 43... Kg8 {[%clk 0:00:15.1]} 44. Bg1 {[%clk 0:00:01.1]}
44... Qf5 {[%clk 0:00:12.4]} 45. Qc4+ {[%clk 0:00:01.2]} 45... Qf7 {[%clk
0:00:11.3]} 46. Qc8+ {[%clk 0:00:01.8]} 46... Qf8 {[%clk 0:00:10.4]} 47. Qe6+
{[%clk 0:00:02.4]} 47... Kh8 {[%clk 0:00:09.7]} 48. Qd5 {[%clk 0:00:03.1]} 48...
Qg8 {[%clk 0:00:08.7]} 49. Qe4 {[%clk 0:00:03.5]} 49... Qd8 {[%clk 0:00:08.5]}
50. Qg4 {[%clk 0:00:01.9]} 50... d3 {[%clk 0:00:07.8]} 51. Be3 {[%clk
0:00:02.6]} 51... d2 {[%clk 0:00:07.3]} 52. Qd1 {[%clk 0:00:02.6]} 52... Qd3
{[%clk 0:00:04.8]} 53. Qxd2 {[%clk 0:00:02.3]} 53... Qxd2 {[%clk 0:00:04.6]} 54.
Bxd2 {[%clk 0:00:02.5]} 54... Kg8 {[%clk 0:00:05.5]} 55. Kh2 {[%clk 0:00:02.2]}
55... Kf7 {[%clk 0:00:06.4]} 56. Kg3 {[%clk 0:00:02.8]} 56... Ke6 {[%clk
0:00:07.1]} 57. Kg4 {[%clk 0:00:03.4]} 57... Kd5 {[%clk 0:00:05.7]} 58. g3
{[%clk 0:00:03.6]} 58... Ke4 {[%clk 0:00:06]} 59. Bb4 {[%clk 0:00:03.8]} 59...
Bd4 {[%clk 0:00:05]} 60. Be7 {[%clk 0:00:04]} 60... Bf2 {[%clk 0:00:04.6]} 61.
Bf6 {[%clk 0:00:03.8]} 61... Ke3 {[%clk 0:00:04.4]} 62. Be7 {[%clk 0:00:03.7]}
62... Ke4 {[%clk 0:00:02.2]} 63. Bd6 {[%clk 0:00:03.5]} 63... Be3 {[%clk
0:00:02.6]} 64. Bc7 {[%clk 0:00:03.4]} 64... Bd4 {[%clk 0:00:02.9]} 65. Bb8
{[%clk 0:00:03.5]} 65... Be5 {[%clk 0:00:03.2]} 66. Ba7 {[%clk 0:00:03.9]} 66...
Kd3 {[%clk 0:00:02.6]} 67. Bf2 {[%clk 0:00:03.4]} 67... Ke2 {[%clk 0:00:02.5]}
68. Bc5 {[%clk 0:00:03.1]} 68... Kd3 {[%clk 0:00:01.7]} 69. Kf3 {[%clk 0:00:03]}
69... Kc4 {[%clk 0:00:02.4]} 70. Be7 {[%clk 0:00:03]} 70... Kd5 {[%clk 0:00:03]}
71. Bd8 {[%clk 0:00:01.9]} 71... Ke6 {[%clk 0:00:03.7]} 72. Kg4 {[%clk
0:00:02.1]} 72... Bd6 {[%clk 0:00:04.6]} 73. Bb6 {[%clk 0:00:02.6]} 73... Kd7
{[%clk 0:00:05.1]} 74. Bd4 {[%clk 0:00:03]} 74... Ke8 {[%clk 0:00:05.5]} 75. Kf3
{[%clk 0:00:03.1]} 75... Kf7 {[%clk 0:00:05.8]} 76. g4 {[%clk 0:00:03.4]} 76...
Ke6 {[%clk 0:00:06.2]} 77. Ke4 {[%clk 0:00:03.6]} 77... Bg3 {[%clk 0:00:06.5]}
78. Be3 {[%clk 0:00:04]} 78... Be1 {[%clk 0:00:06.5]} 79. Bd4 {[%clk 0:00:03.2]}
79... Bd2 {[%clk 0:00:05.3]} 80. Bf2 {[%clk 0:00:02.1]} 80... Bxg5 {[%clk
0:00:05.2]} 81. Bd4 {[%clk 0:00:02.6]} 81... Bf6 {[%clk 0:00:05.2]} 82. Be3
{[%clk 0:00:03.1]} 82... Be7 {[%clk 0:00:05.3]} 83. Bd2 {[%clk 0:00:02.7]} 83...
Bd6 {[%clk 0:00:05.4]} 84. Be3 {[%clk 0:00:02.8]} 84... Kf7 {[%clk 0:00:05.9]}
85. Kd5 {[%clk 0:00:02.6]} 85... Be7 {[%clk 0:00:05.9]} 86. Ke4 {[%clk
0:00:03.3]} 86... Bh4 {[%clk 0:00:06.2]} 87. Kf3 {[%clk 0:00:03]} 87... Kf6
{[%clk 0:00:06.5]} 88. Ke4 {[%clk 0:00:02.5]} 88... Bg5 {[%clk 0:00:06.3]} 89.
Bd4+ {[%clk 0:00:02.9]} 89... Ke6 {[%clk 0:00:06.3]} 90. Bg7 {[%clk 0:00:03.6]}
90... Bf6 {[%clk 0:00:03.9]} 91. Bh6 {[%clk 0:00:03.3]} 91... g5 {[%clk
0:00:03.6]} 92. Bf8 {[%clk 0:00:03.8]} 92... Kf7 {[%clk 0:00:03.5]} 93. Bc5
{[%clk 0:00:03.7]} 93... Kg6 {[%clk 0:00:02.4]} 94. Be3 {[%clk 0:00:03.9]} 94...
Bg7 {[%clk 0:00:03.3]} 95. Kf3 {[%clk 0:00:03.9]} 95... h6 {[%clk 0:00:04.2]}
96. Bf2 {[%clk 0:00:03.9]} 96... Bf8 {[%clk 0:00:04.8]} 97. Ke4 {[%clk
0:00:04.6]} 97... Bd6 {[%clk 0:00:05.3]} 98. Be3 {[%clk 0:00:04.9]} 98... Kf6
{[%clk 0:00:05.3]} 99. Kd5 {[%clk 0:00:04.5]} 99... Bf4 {[%clk 0:00:05.1]} 100.
Bd4+ {[%clk 0:00:04.3]} 100... Kg6 {[%clk 0:00:05.1]} 101. Ke4 {[%clk 0:00:05]}
101... Kf7 {[%clk 0:00:03.8]} 102. Kf5 {[%clk 0:00:04.8]} 102... Bc1 {[%clk
0:00:03.9]} 103. Bc5 {[%clk 0:00:04.9]} 103... Kg7 {[%clk 0:00:03.2]} 104. Be7
{[%clk 0:00:03.2]} 104... Kh7 {[%clk 0:00:03.3]} 105. Bf6 {[%clk 0:00:03.4]}
105... Bf4 {[%clk 0:00:03.8]} 106. Bd4 {[%clk 0:00:03.5]} 106... Bc1 {[%clk
0:00:02.7]} 107. Kf6 {[%clk 0:00:03.4]} 107... Ba3 {[%clk 0:00:02.9]} 108. Kf7
{[%clk 0:00:03.5]} 108... Bb4 {[%clk 0:00:02.8]} 109. Bf6 {[%clk 0:00:04.1]}
109... Bd2 {[%clk 0:00:03.2]} 110. Bg7 {[%clk 0:00:04.3]} 110... Bf4 {[%clk
0:00:03.4]} 111. Bf6 {[%clk 0:00:04.4]} 111... Bd6 {[%clk 0:00:03.7]} 112. Ke6
{[%clk 0:00:03.3]} 112... Bc5 {[%clk 0:00:04.1]} 113. Kd5 {[%clk 0:00:03.2]}
113... Be3 {[%clk 0:00:04.7]} 114. Ke4 {[%clk 0:00:03.4]} 114... Bf4 {[%clk
0:00:05.6]} 115. Kf5 {[%clk 0:00:03.7]} 115... Be3 {[%clk 0:00:06]} 116. Be5
{[%clk 0:00:03.5]} 116... Bc1 {[%clk 0:00:06.6]} 117. Bg3 {[%clk 0:00:03.8]}
117... Bd2 {[%clk 0:00:07]} 118. Bf2 {[%clk 0:00:04.1]} 118... Bc3 {[%clk
0:00:07.4]} 119. Be3 {[%clk 0:00:04.1]} 119... Bg7 {[%clk 0:00:08.3]} 120. Bd2
{[%clk 0:00:03.8]} 120... Bh8 {[%clk 0:00:09.1]} 121. Bb4 {[%clk 0:00:03.8]}
121... Ba1 {[%clk 0:00:09.7]} 122. Bc5 {[%clk 0:00:04]} 122... Kg7 {[%clk
0:00:10.3]} 123. Bd6 {[%clk 0:00:03.5]} 123... Kf7 {[%clk 0:00:10.9]} 124. Bc5
{[%clk 0:00:03.3]} 124... Bf6 {[%clk 0:00:11.4]} 125. Be3 {[%clk 0:00:03.5]}
125... Bg7 {[%clk 0:00:11.7]} 126. Bd2 {[%clk 0:00:03.6]} 126... Bf8 {[%clk
0:00:12.1]} 127. Bc3 {[%clk 0:00:03.5]} 127... Bd6 {[%clk 0:00:12.6]} 128. Bd4
{[%clk 0:00:03.5]} 128... Bg3 {[%clk 0:00:13.2]} 129. Bc3 {[%clk 0:00:02.3]}
129... Bf2 {[%clk 0:00:13.3]} 130. Be5 {[%clk 0:00:02.8]} 130... Be3 {[%clk
0:00:13.8]} 131. Bc3 {[%clk 0:00:03.2]} 131... Bf4 {[%clk 0:00:14.4]} 132. Be1
{[%clk 0:00:03.7]} 132... Kg7 {[%clk 0:00:14.6]} 133. Ke4 {[%clk 0:00:03.9]}
133... Kg6 {[%clk 0:00:14.9]} 134. Bc3 {[%clk 0:00:04.1]} 134... h5 {[%clk
0:00:15.3]} 135. gxh5+ {[%clk 0:00:03.7]} 135... Kxh5 {[%clk 0:00:16.2]} 136.
Kf3 {[%clk 0:00:04.2]} 136... Kh4 {[%clk 0:00:15.5]} 137. Bf6 {[%clk 0:00:02.8]}
137... Kh3 {[%clk 0:00:14.8]} 138. Be7 {[%clk 0:00:02.3]} 138... Bc1 {[%clk
0:00:13.5]} 139. Bxg5 {[%clk 0:00:01.9]} 1/2-1/2

[Event "Early-Titled-Tuesday-Blitz-May-07-2024"]
[Site "Chess.com"]
[Date "2024.05.07"]
[Round "11"]
[White "dianamirza"]
[Black "lluiss"]
[Result "0-1"]
[WhiteElo "1926"]
[BlackElo "2220"]
[TimeControl "180+1"]
[EndTime "10:09:46 PDT"]
[Termination "lluiss won by resignation"]

1. e4 {[%clk 0:02:40.3]} 1... c5 {[%clk 0:02:59.1]} 2. Nf3 {[%clk 0:02:40.2]}
2... d6 {[%clk 0:02:58.2]} 3. d4 {[%clk 0:02:40.6]} 3... cxd4 {[%clk 0:02:58.5]}
4. Nxd4 {[%clk 0:02:41.5]} 4... Nf6 {[%clk 0:02:58.4]} 5. Nc3 {[%clk 0:02:42.4]}
5... g6 {[%clk 0:02:58.5]} 6. Be3 {[%clk 0:02:42.6]} 6... Bg7 {[%clk 0:02:58.7]}
7. Qd2 {[%clk 0:02:43.3]} 7... Nc6 {[%clk 0:02:57.7]} 8. O-O-O {[%clk
0:02:43.8]} 8... Nxd4 {[%clk 0:02:56.3]} 9. Bxd4 {[%clk 0:02:44]} 9... Be6
{[%clk 0:02:56.5]} 10. Kb1 {[%clk 0:02:41.1]} 10... O-O {[%clk 0:02:42.3]} 11.
h4 {[%clk 0:02:40.1]} 11... Qa5 {[%clk 0:02:28.3]} 12. Nd5 {[%clk 0:02:28.3]}
12... Qxd2 {[%clk 0:02:27.3]} 13. Rxd2 {[%clk 0:02:28]} 13... Nxe4 {[%clk
0:02:18.4]} 14. Nxe7+ {[%clk 0:02:27.1]} 14... Kh8 {[%clk 0:02:18.2]} 15. Bxg7+
{[%clk 0:02:27.8]} 15... Kxg7 {[%clk 0:02:18.2]} 16. Rd4 {[%clk 0:02:27]} 16...
Nxf2 {[%clk 0:02:03.9]} 17. Rg1 {[%clk 0:02:16.9]} 17... Rfe8 {[%clk 0:02:03.9]}
18. Nd5 {[%clk 0:02:13.9]} 18... Bxd5 {[%clk 0:02:03.5]} 19. Rxd5 {[%clk
0:02:14.8]} 19... Re1+ {[%clk 0:02:02.7]} 0-1

[Event "Early-Titled-Tuesday-Blitz-May-07-2024"]
[Site "Chess.com"]
[Date "2024.05.07"]
[Round "11"]
[White "DarZay"]
[Black "Journey_to_GrandMaster_YT"]
[Result "1/2-1/2"]
[WhiteElo "2343"]
[BlackElo "2503"]
[TimeControl "180+1"]
[EndTime "10:10:27 PDT"]
[Termination "Game drawn by repetition"]

1. e4 {[%clk 0:02:54.9]} 1... c5 {[%clk 0:03:00.1]} 2. Nf3 {[%clk 0:02:53.5]}
2... Nc6 {[%clk 0:02:57.9]} 3. d4 {[%clk 0:02:53.5]} 3... cxd4 {[%clk
0:02:58.1]} 4. Nxd4 {[%clk 0:02:53.7]} 4... e5 {[%clk 0:02:58.7]} 5. Nb5 {[%clk
0:02:53.2]} 5... d6 {[%clk 0:02:58.7]} 6. N1c3 {[%clk 0:02:52.2]} 6... a6 {[%clk
0:02:58.9]} 7. Na3 {[%clk 0:02:52.3]} 7... Nf6 {[%clk 0:02:57.5]} 8. Bg5 {[%clk
0:02:51.5]} 8... Be7 {[%clk 0:02:57.7]} 9. Bxf6 {[%clk 0:02:51.8]} 9... gxf6
{[%clk 0:02:57.6]} 10. Nd5 {[%clk 0:02:52.6]} 10... f5 {[%clk 0:02:57]} 11. Bc4
{[%clk 0:02:41.7]} 11... b5 {[%clk 0:02:54.4]} 12. Bb3 {[%clk 0:02:40.4]} 12...
fxe4 {[%clk 0:02:42.7]} 13. Qh5 {[%clk 0:02:39.5]} 13... Be6 {[%clk 0:02:40.3]}
14. Nc7+ {[%clk 0:02:35.2]} 14... Qxc7 {[%clk 0:02:37.7]} 15. Bxe6 {[%clk
0:02:35]} 15... O-O {[%clk 0:02:25.1]} 16. Bf5 {[%clk 0:02:30]} 16... Kg7 {[%clk
0:02:16.3]} 17. Qxh7+ {[%clk 0:02:23.9]} 17... Kf6 {[%clk 0:02:16]} 18. Qh6+
{[%clk 0:02:16.1]} 18... Kxf5 {[%clk 0:02:15]} 19. g4+ {[%clk 0:02:16]} 19...
Kxg4 {[%clk 0:02:13.9]} 20. Rg1+ {[%clk 0:01:50.1]} 20... Kf5 {[%clk 0:02:12.7]}
21. Qh3+ {[%clk 0:01:47.3]} 21... Kf6 {[%clk 0:02:09.6]} 22. Qh6+ {[%clk
0:01:45.8]} 22... Kf5 {[%clk 0:02:09]} 23. Qh3+ {[%clk 0:01:45.3]} 23... Kf6
{[%clk 0:02:06.1]} 24. Qh6+ {[%clk 0:01:43.9]} 24... Kf5 {[%clk 0:02:04.8]}
1/2-1/2